fUST/lending_fUST_20260131
["ID","MTS","AMOUNT","RATE_DAILY","PERIOD"]
[404095516,1769824231668,-152.37,9.7e-05,2]
[404095518,1769824231677,-95.24510772,0.00013068,2]
[404095521,1769824231689,-81.75489228,0.00013068,2]
[404095523,1769824231698,-300.0,0.00013272,2]
[404095525,1769824231707,-247.54587716,0.00013273,2]
[404095527,1769824231719,-258.14802373,0.00013273,2]
[404095529,1769824231728,-18.21197627,0.00013273,2]
[404095531,1769824231740,-485.90177722,0.00013273,2]
[404095533,1769824231749,-508.24251279,0.00013273,2]
[404095535,1769824231759,-500.0,0.00013273,2]
[404095537,1769824231768,-104.38684233,0.00013699,2]
[404095541,1769824231793,-399.43074163,0.00013699,2]
[404095543,1769824231803,-150.19297905,0.00013699,2]
[404095545,1769824231812,-500.0,0.00013699,2]
[404095547,1769824231823,-512.13416353,0.00013699,2]
[404095549,1769824231832,-573.6384182,0.00013821,2]
[404095551,1769824231841,-506.24159292,0.00014247,2]
[404095553,1769824231850,-420.0,0.00014551,2]
[404095555,1769824231861,-204.0,0.00015068,2]
[404095557,1769824231871,-166.0,0.00016634,2]
[404095559,1769824231881,-1000.0,0.00016634,2]
[404095561,1769824231890,-231.0,0.00017068,2]
[404095563,1769824231899,-177.0,0.00017485,2]
[404095565,1769824231909,-1441.553334,0.00018,2]
[404095567,1769824231918,-500.0,0.00018999,2]
[404095568,1769824231928,-603.90821116,0.00018999,2]
[404095570,1769824231937,-2603.49,0.00019,2]
[404095572,1769824231946,-6371.73029985,0.00019,2]
[404095756,1769824237715,-297.08773857,0.00019,2]
[404095759,1769824237770,-367.3565916,0.00019,2]
[404095763,1769824239915,-3371.7712526,0.00019,2]
[404095814,1769824244542,-1289.13908431,0.00019,2]
[404095815,1769824244553,-246.74660265,0.00019068,2]
[404095816,1769824244562,-164.83,0.000196,2]
[404095817,1769824244572,-182.13973474,0.00019604,2]
[404095818,1769824244580,-227.1445783,0.00019604,2]
[404095842,1769824245814,-20.18569432,0.00019604,2]
[404095844,1769824245823,-157.26127169,0.00019604,2]
[404095846,1769824245834,-182.13973474,0.0002021,5]
[404095848,1769824245843,-182.13973473,0.00020827,5]
[404095849,1769824245852,-65.09534222,0.000216,2]
[404095850,1769824245920,-941.83465778,0.000216,2]
[404095851,1769824245932,-1627.53382668,0.000217,3]
[404095852,1769824487032,2000.0,0.0003,120]
[404095853,1769824508166,151.0,0.00034978,30]
[404095854,1769824508198,250.0,0.00034978,30]
[404095855,1769824508231,157.91399932,0.00034978,30]
[404095856,1769824508470,151.92697146,0.00034978,30]
[404095857,1769824508669,291.08484023,0.00034978,30]
[404095858,1769824508737,250.0,0.00034978,30]
[404095859,1769824509350,604.09034765,0.00034978,30]
[404095860,1769824510577,151.0,0.00034978,30]
[404095861,1769824511221,151.0,0.00034978,30]
[404095862,1769824511254,505.21037782,0.00034978,30]
[404095863,1769824511632,2000.0,0.00034978,30]
[404095864,1769824511832,151.0,0.00034978,30]
[404095865,1769824513143,151.0,0.00034978,30]
[404095866,1769824513778,156.587,0.00034978,30]
[404095867,1769824514425,162.380719,0.00034978,30]
[404095868,1769824515053,168.3888056,0.00034978,30]
[404095869,1769824515085,2000.0,0.00034978,30]
[404095870,1769824515664,174.61919141,0.00034978,30]
[404095871,1769824515738,2000.0,0.00034978,30]
[404095872,1769824516399,2000.0,0.00034978,30]
[404095873,1769824516800,181.08010149,0.00034978,30]
[404095874,1769824517453,187.78006525,0.00034978,30]
[404095875,1769824517516,2000.0,0.00034978,30]
[404095876,1769824518058,194.72792766,0.00034978,30]
[404095877,1769824518140,2000.0,0.00034978,30]
[404095878,1769824518650,201.93286099,0.00034978,30]
[404095879,1769824519244,209.40437684,0.00034978,30]
[404095880,1769824519841,217.15233878,0.00034978,30]
[404095881,1769824520439,225.18697532,0.00034978,30]
[404095882,1769824521069,233.51889341,0.00034978,30]
[404095883,1769824521755,242.15909246,0.00034978,30]
[404095884,1769824522923,251.11897888,0.00034978,30]
[404095885,1769824523550,260.4103811,0.00034978,30]
[404095886,1769824524169,260.4103811,0.00034978,30]
[404095887,1769824596620,1666342.85518335,0.00034978,30]
[404095889,1769825127684,178.75,8.993e-05,2]
[404095907,1769825431846,-599.7704835,0.00013009,2]
[404095908,1769825431899,-378.35660991,0.00013009,2]
[404095909,1769825431911,-143.29808971,0.00013009,2]
[404095910,1769825431920,-604.0,0.00013009,2]
[404095911,1769825431929,-995.25202888,0.0001314,2]
[404095912,1769825431953,-904.74797112,0.0001314,2]
[404095914,1769825431962,-278.0,0.00013272,2]
[404095916,1769825431971,-500.0,0.00013273,2]
[404095918,1769825431980,-503.51626471,0.00013273,2]
[404095919,1769825431989,-500.0,0.00013273,2]
[404095920,1769825431998,-500.0,0.00013273,2]
[404095921,1769825432007,-500.0,0.00013273,2]
[404095922,1769825432016,-150.47007116,0.00013673,2]
[404095923,1769825432026,-228.19698272,0.00013699,2]
[404095924,1769825432035,-430.36941288,0.00013821,2]
[404095925,1769825432047,-569.63058712,0.00013821,2]
[404095926,1769825432056,-1000.0,0.00013821,2]
[404095927,1769825432065,-979.63344782,0.00013821,2]
[404095928,1769825432074,-1000.0,0.00013821,2]
[404095929,1769825432083,-504.80719234,0.00014368,2]
[404095930,1769825432092,-455.02550154,0.00014368,2]
[404095931,1769825432101,-553.24891333,0.00014368,2]
[404095932,1769825432111,-177.0,0.00015074,2]
[404095933,1769825432119,-166.809222,0.0001567,2]
[404095934,1769825432129,-155.1,0.00016438,2]
[404095935,1769825432138,-204.0,0.00017074,2]
[404095936,1769825432149,-251.1908265,0.00017189,2]
[404095937,1769825432160,-8069.1728401,0.00017738,2]
[404095938,1769825432169,-6514.6178214,0.00017738,2]
[404095939,1769825432178,-500.0,0.00018487,2]
[404095940,1769825432186,-500.0,0.00018487,2]
[404095941,1769825432198,-171.13174374,0.00018487,2]
[404095942,1769825432206,-3129.9630366,0.00018488,2]
[404095943,1769825432215,-9957.2782499,0.00018488,2]
[404095944,1769825432225,-303.10001603,0.000189,2]
[404095945,1769825432234,-231.0,0.00019074,2]
[404095946,1769825432243,-303.10001603,0.00019089,2]
[404095947,1769825432252,-166.809222,0.00019094,2]
[404095948,1769825432261,-303.10001603,0.00019278,2]
[404095949,1769825432270,-303.10001602,0.00019467,2]
[404095950,1769825432279,-154.36723257,0.00019603,2]
[404095951,1769825432288,-617.4689303,0.00019603,2]
[404095952,1769825432297,-741.52990182,0.00019603,2]
[404095953,1769825432306,-1334.75382328,0.00019603,2]
[404095954,1769825432315,-176.89902884,0.00019611,2]
[404095955,1769825432324,-1389.30509317,0.00019782,2]
[404095956,1769825432333,-3000.0,0.00021,2]
[404095957,1769825432342,-3000.0,0.0002101,2]
[404095958,1769825432351,-2372.89568583,0.00021016,2]
[404095959,1769825432360,-3000.0,0.0002102,2]
[404095960,1769825432369,-3000.0,0.0002103,2]
[404095961,1769825432379,-3000.0,0.0002104,2]
[404095962,1769825432387,-3000.0,0.0002105,2]
[404095963,1769825432396,-3000.0,0.0002106,2]
[404095964,1769825432405,-3000.0,0.0002107,2]
[404095965,1769825432415,-258.0,0.00021074,2]
[404095966,1769825432425,-200.33918789,0.00021078,2]
[404095967,1769825432434,-216.07432614,0.00021078,2]
[404095968,1769825432443,-160.2713888,0.00021079,2]
[404095969,1769825432452,-3000.0,0.0002108,2]
[404095970,1769825432462,-3000.0,0.0002109,2]
[404095971,1769825432471,-3242.812232,0.000211,2]
[404095972,1769825432480,-1065.1,0.000215,2]
[404095973,1769825432489,-161.0,0.000217,3]
[404095974,1769825432498,-3578.6651514,0.000217,3]
[404095975,1769825432507,-2442.78576034,0.000219,2]
[404095976,1769825432516,-150.66764773,0.00021918,2]
[404095977,1769825432525,-200.12,0.0002199,3]
[404095978,1769825432534,-166.77,0.0002199,3]
[404095979,1769825432542,-500.33,0.0002199,3]
[404095980,1769825432551,-310.95,0.0002199,10]
[404095981,1769825432560,-578.37,0.0002199,10]
[404095982,1769825432569,-3539.89356218,0.00021999,2]
[404095983,1769825432578,-8365.24306209,0.00022,2]
[404096141,1769825437865,-320.97220368,0.00022,2]
[404096143,1769825437876,-1228.0,0.00022,2]
[404096146,1769825437918,-928.5,0.00022,2]
[404096147,1769825437929,-9428.46599538,0.00022,2]
[404096148,1769825437973,-85955.77818521,0.00022,2]
[404096149,1769825437984,-3734.68883386,0.00022,2]
[404096167,1769825440197,-65382.59124224,0.00022,2]
[404096168,1769825440208,-874.89,0.00022,2]
[404096169,1769825440220,-5986.14370437,0.00022,2]
[404096170,1769825440233,-1388.460217,0.00022,2]
[404096171,1769825440243,-81593.60216542,0.00022,2]
[404096180,1769825444057,-1069.70309721,0.000219,2]
[404096181,1769825444066,-481.98,0.0002199,10]
[404096182,1769825444075,-23151.10370902,0.00022,2]
[404096183,1769825444112,-1121.42370139,0.00022,2]
[404096187,1769825446015,-1718.22767628,0.0002178,2]
[404096191,1769825446122,-776.32761865,0.0002178,2]
[404096192,1769825446131,-13373.09941819,0.00022,2]
[404096193,1769825446174,-3380.55562623,0.00022,2]
[404096200,1769826424467,1010.0,0.00030137,120]
[404096208,1769826506411,162.2250874,0.00025,120]
[404096326,1769826636497,-5000.0,0.00012514,2]
[404096327,1769826636507,-3433.56408931,0.0001264,2]
[404096328,1769826636517,-1718.22767628,0.00012768,2]
[404096329,1769826636527,-603.0,0.00012897,2]
[404096330,1769826636537,-1073.0,0.00013026,2]
[404096331,1769826636547,-507.76073264,0.00013699,2]
[404096332,1769826636558,-501.09941059,0.00013699,2]
[404096333,1769826636567,-300.27532918,0.00013699,2]
[404096334,1769826636576,-288.34858207,0.00013699,2]
[404096336,1769826636586,-183.0826609,0.00013699,2]
[404096338,1769826636595,-502.98176082,0.00013699,2]
[404096340,1769826636605,-502.99878118,0.00013699,2]
[404096349,1769826636709,-502.26857359,0.00013699,2]
[404096352,1769826636756,-158.28359221,0.00013699,2]
[404096354,1769826636765,-508.24952436,0.00013699,2]
[404096356,1769826636774,-502.0914091,0.00013699,2]
[404096358,1769826636783,-502.67054401,0.00013699,2]
[404096359,1769826636792,-502.37216285,0.00013699,2]
[404096360,1769826636802,-500.0,0.00013699,2]
[404096361,1769826636811,-1000.0,0.00014247,2]
[404096362,1769826636820,-1500.0,0.00014795,2]
[404096363,1769826636830,-2000.0,0.00015342,2]
[404096364,1769826636839,-177.0,0.00015359,2]
[404096365,1769826636848,-87336.82339567,0.000154,2]
[404096366,1769826636859,-43446.06947512,0.000154,2]
[404096369,1769826638035,-2737.0872181,0.000154,2]
[404096370,1769826638048,-435.0,0.000154,2]
[404096371,1769826638090,-75043.52715568,0.000154,2]
[404096372,1769826638100,-573.0773218,0.0001554,2]
[404096373,1769826638109,-5000.0,0.0001564,2]
[404096374,1769826638118,-2500.0,0.0001589,2]
[404096375,1769826638128,-150.31601012,0.00016438,2]
[404096376,1769826638137,-3000.0,0.00016438,2]
[404096377,1769826638147,-1225.49381677,0.00016986,2]
[404096378,1769826638156,-506.33672426,0.00016999,2]
[404096379,1769826638165,-500.0,0.00016999,2]
[404096380,1769826638175,-500.0,0.00016999,2]
[404096381,1769826638185,-501.81777384,0.00016999,2]
[404096382,1769826638194,-500.0,0.00016999,2]
[404096383,1769826638204,-500.0,0.00016999,2]
[404096384,1769826638214,-500.0,0.00016999,2]
[404096385,1769826638224,-500.0,0.00016999,2]
[404096386,1769826638233,-478.1399255,0.00016999,2]
[404096387,1769826638243,-519.66011535,0.00016999,2]
[404096388,1769826638252,-500.0,0.00016999,2]
[404096389,1769826638261,-452.19941668,0.00016999,2]
[404096390,1769826638270,-408.12519769,0.00016999,2]
[404096391,1769826638279,-19273.46192039,0.00017,2]
[404096392,1769826638289,-1041.66666667,0.00017256,2]
[404096393,1769826638298,-160.0,0.00017256,2]
[404096394,1769826638307,-204.0,0.00017359,2]
[404096395,1769826638316,-3131.17176063,0.0001747,2]
[404096396,1769826638326,-6110.43618082,0.00018,2]
[404096397,1769826638335,-573.07732176,0.00018304,2]
[404096398,1769826638345,-5000.0,0.00018768,2]
[404096399,1769826638354,-231.0,0.00019359,2]
[404096400,1769826638363,-540.11,0.000194,2]
[404096401,1769826638375,-182.13973474,0.00020216,5]
[404096402,1769826638385,-157.37135961,0.00020216,5]
[404096403,1769826638395,-157.0153738,0.00020242,2]
[404096404,1769826638404,-1957.856,0.00020242,2]
[404096405,1769826638414,-2030.296672,0.00020297,2]
[404096406,1769826638424,-2105.41764886,0.00020352,2]
[404096407,1769826638433,-2280.9819253,0.00020407,2]
[404096408,1769826638443,-182.13973473,0.00020841,5]
[404096409,1769826638453,-341.391857,0.00020928,2]
[404096410,1769826638463,-273.0,0.00020956,2]
[404096411,1769826638472,-506.49876476,0.00020999,2]
[404096412,1769826638483,-154.28709444,0.00020999,2]
[404096413,1769826638492,-573.07732176,0.00021069,2]
[404096414,1769826638502,-2000.0,0.00021271,7]
[404096415,1769826638511,-258.0,0.00021359,2]
[404096416,1769826638523,-500.0,0.00021451,2]
[404096417,1769826638532,-150.69569913,0.00021451,2]
[404096418,1769826638542,-500.0,0.00021451,2]
[404096419,1769826638553,-500.0,0.00021451,2]
[404096420,1769826638562,-150.74375766,0.00021451,2]
[404096421,1769826638572,-500.0,0.00021588,2]
[404096422,1769826638581,-500.0,0.00021588,2]
[404096423,1769826638590,-500.0,0.00021588,2]
[404096424,1769826638599,-204.3513618,0.00021588,2]
[404096425,1769826638608,-198.00830852,0.00021599,2]
[404096426,1769826638618,-232.47986627,0.00021599,2]
[404096427,1769826638627,-2469.87572119,0.000216,2]
[404096428,1769826638638,-1702.45354799,0.000216,2]
[404096429,1769826638650,-2005.19596113,0.000216,2]
[404096430,1769826638659,-202.77338207,0.000216,2]
[404096431,1769826638669,-811.0935283,0.000216,2]
[404096432,1769826638678,-477.12726427,0.000216,2]
[404096433,1769826638687,-296.16286123,0.00021725,2]
[404096434,1769826638696,-267.88809164,0.00021725,2]
[404096435,1769826638708,-500.0,0.00021725,2]
[404096436,1769826638717,-186.76534904,0.00021725,2]
[404096437,1769826638728,-313.23465096,0.00021725,2]
[404096438,1769826638737,-500.0,0.00021725,2]
[404096439,1769826638746,-257.54363423,0.00021725,2]
[404096440,1769826638758,-242.45636577,0.00021725,2]
[404096441,1769826638767,-144.05363423,0.00021725,2]
[404096458,1769826644657,-352.0,0.0002116,2]
[404096459,1769826644668,-355.94636577,0.00021725,2]
[404096460,1769826644678,-84.2207324,0.00021725,2]
[404096473,1769826646195,-415.7792676,0.00021725,2]
[404096474,1769826646204,-500.0,0.00021725,2]
[404096475,1769826646214,-141.9894324,0.00021725,2]
[404096476,1769826646225,-358.0105676,0.00021725,2]
[404096477,1769826646235,-500.0,0.00021725,2]
[404096478,1769826646243,-284.77570146,0.00021725,2]
[404096479,1769826646253,-230.918,0.0002178,2]
[404096480,1769826646262,-205.20556002,0.00021862,2]
[404096481,1769826646272,-207.53411095,0.00021862,2]
[404096482,1769826646282,-152.24119496,0.00021862,2]
[404096483,1769826646291,-500.0,0.00021862,2]
[404096484,1769826646301,-638.75775891,0.00021862,2]
[404096485,1769826646310,-200.86997949,0.00021862,2]
[404096486,1769826646319,-854.2208374,0.00021879,2]
[404096487,1769826646329,-333.54,0.0002199,3]
[404096488,1769826646339,-207.15305393,0.00021999,2]
[404096489,1769826646354,-500.0,0.00021999,2]
[404096490,1769826646365,-204.05175923,0.00021999,2]
[404096491,1769826646374,-150.90909599,0.00021999,2]
[404096492,1769826646384,-23.81238006,0.00021999,2]
[404096493,1769826646395,-476.18761994,0.00021999,2]
[404096494,1769826646404,-500.0,0.00021999,2]
[404096495,1769826646413,-550.87687836,0.00021999,2]
[404096496,1769826646423,-1067.18825289,0.00021999,2]
[404096497,1769826646432,-15788.24418876,0.00022,2]
[404096522,1769826825362,10000.0,0.00030137,120]
[404096524,1769826848749,10000.0,0.00030137,120]
[404096525,1769826856868,10000.0,0.00030137,120]
[404096526,1769826862755,10000.0,0.00030137,120]
[404096527,1769826870947,10000.0,0.00030137,120]
[404096528,1769826879066,10000.0,0.00030137,120]
[404096529,1769826884885,10000.0,0.00030137,120]
[404096530,1769826890441,10000.0,0.00030137,120]
[404096531,1769826899631,10000.0,0.00030137,120]
[404096532,1769826905150,10000.0,0.00030137,120]
[404096533,1769826915267,10000.0,0.00030137,120]
[404096534,1769826924001,10000.0,0.00030137,120]
[404096535,1769826930602,10000.0,0.00030137,120]
[404096536,1769826943580,10000.0,0.00030137,120]
[404096537,1769826949876,10000.0,0.00030137,120]
[404096538,1769826955465,10000.0,0.00030137,120]
[404096539,1769826963344,10000.0,0.00030137,120]
[404096540,1769826983160,10000.0,0.00030137,120]
[404096541,1769826993143,10000.0,0.00030137,120]
[404096542,1769827001487,10000.0,0.00030137,120]
[404096543,1769827388458,450.0,0.00030136,120]
[404096544,1769827484891,163.0,0.00030137,120]
[404096545,1769827557174,10000.0,0.00030137,120]
[404096546,1769827564184,10000.0,0.00030137,120]
[404096547,1769827577836,10000.0,0.00030137,120]
[404096548,1769827586117,10000.0,0.00030137,120]
[404096549,1769827595320,10000.0,0.00030137,120]
[404096550,1769827603587,10000.0,0.00030137,120]
[404096551,1769827621817,514.0,0.00030137,120]
[404096554,1769827730322,150.10224834,0.00030136,120]
[404096555,1769827740233,465.13,0.00030136,120]
[404096561,1769827832150,-197.02923964,0.00011664,2]
[404096562,1769827832160,-1224.23152996,0.00011782,2]
[404096680,1769827838324,-5000.0,0.00011664,2]
[404096682,1769827838334,-3775.76847004,0.00011782,2]
[404096684,1769827838344,-586.0,0.00011782,2]
[404096686,1769827838354,-500.0,0.00013699,2]
[404096688,1769827838363,-177.0,0.00014204,2]
[404096690,1769827838373,-204.0,0.00016204,2]
[404096692,1769827838382,-231.0,0.00018204,2]
[404096694,1769827838392,-166.66666668,0.000188,2]
[404096696,1769827838401,-1000.0,0.00019006,2]
[404096698,1769827838411,-514.84070869,0.00019537,2]
[404096700,1769827838420,-187.78006525,0.00019537,2]
[404096702,1769827838430,-194.72792766,0.00019537,2]
[404096704,1769827838439,-201.93286099,0.00019537,2]
[404096706,1769827838449,-209.40437684,0.00019537,2]
[404096708,1769827838459,-217.15233878,0.00019537,2]
[404096710,1769827838468,-225.18697532,0.00019537,2]
[404096712,1769827838477,-233.51889341,0.00019537,2]
[404096714,1769827838487,-242.15909246,0.00019537,2]
[404096716,1769827838496,-251.11897888,0.00019537,2]
[404096718,1769827838505,-260.4103811,0.00019537,2]
[404096720,1769827838516,-270.0455652,0.00019537,2]
[404096722,1769827838525,-280.03725112,0.00019537,2]
[404096724,1769827838535,-290.39862941,0.00019537,2]
[404096727,1769827838547,-301.1433787,0.00019537,2]
[404096729,1769827838557,-197.20189659,0.00019621,2]
[404096731,1769827838566,-300.0,0.00019948,2]
[404096733,1769827838576,-533.88981491,0.00020085,2]
[404096735,1769827838585,-258.0,0.00020203,2]
[404096737,1769827838595,-166.66666666,0.00020235,2]
[404096739,1769827838604,-423.53598376,0.00020633,2]
[404096741,1769827838614,-1041.66666667,0.00021162,2]
[404096743,1769827838623,-160.0,0.00021357,2]
[404096745,1769827838634,-166.66666666,0.0002167,2]
[404096747,1769827838645,-500.0,0.00021725,2]
[404096749,1769827838655,-150.38236945,0.00021725,2]
[404096751,1769827838665,-2717.5127834,0.00021838,2]
[404096753,1769827838675,-500.0,0.00021862,2]
[404096755,1769827838685,-1621.61203765,0.00021862,2]
[404096757,1769827838698,-203.34840102,0.00021862,2]
[404096759,1769827838708,-858.82907568,0.00021862,2]
[404096761,1769827838718,-358.1733261,0.00021899,2]
[404096763,1769827838727,-401.65,0.0002199,10]
[404096765,1769827838737,-334.7,0.0002199,10]
[404096767,1769827838747,-278.92,0.0002199,10]
[404096769,1769827838757,-180.0,0.00021998,2]
[404096771,1769827838767,-190.17985698,0.00021998,2]
[404096773,1769827838776,-168.85112393,0.00021998,2]
[404096775,1769827838786,-500.0,0.00021999,2]
[404096777,1769827838796,-216.03331621,0.00021999,2]
[404096779,1769827838806,-266.72361068,0.00021999,2]
[404096781,1769827838816,-500.0,0.00021999,2]
[404096783,1769827838826,-500.0,0.00021999,2]
[404096785,1769827838835,-500.0,0.00021999,2]
[404096787,1769827838845,-500.0,0.00021999,2]
[404096789,1769827838858,-500.0,0.00021999,2]
[404096791,1769827838870,-500.0,0.00021999,2]
[404096793,1769827838882,-500.0,0.00021999,2]
[404096795,1769827838892,-500.0,0.00021999,2]
[404096797,1769827838902,-500.0,0.00021999,2]
[404096800,1769827838912,-500.0,0.00021999,2]
[404096802,1769827838922,-500.0,0.00021999,2]
[404096803,1769827838931,-500.0,0.00021999,2]
[404096804,1769827838940,-216.482,0.00021999,2]
[404096805,1769827838950,-211059.9520142,0.00022,2]
[404096806,1769827838959,-154.1,0.00022,7]
[404096807,1769827838968,-501.05887575,0.00022,2]
[404096808,1769827838977,-1930.10220344,0.00022,2]
[404096809,1769827838987,-3470.0166917,0.00022,2]
[404096810,1769827838999,-20291.04087002,0.00022,2]
[404096811,1769827839008,-485.4,0.00022,14]
[404096812,1769827839017,-2000.0,0.00022,7]
[404096813,1769827839026,-2000.0,0.00022,7]
[404096814,1769827839035,-248.899,0.00022,7]
[404096815,1769827839044,-475.0,0.00022,7]
[404096816,1769827839053,-475.0,0.00022,7]
[404096817,1769827839066,-475.0,0.00022,7]
[404096818,1769827839076,-475.0,0.00022,7]
[404096819,1769827839085,-475.0,0.00022,7]
[404096820,1769827839097,-150.645,0.00022,7]
[404096821,1769827839116,-500.0,0.00022136,2]
[404096822,1769827839127,-285.0,0.00022203,2]
[404096823,1769827839136,-500.0,0.00022273,2]
[404096824,1769827839146,-500.0,0.0002241,2]
[404096825,1769827839155,-156.75199176,0.0002241,2]
[404096826,1769827839164,-166.809222,0.00022519,2]
[404096827,1769827839173,-380.3595717,0.00022547,2]
[404096828,1769827839182,-508.3023,0.00022835,2]
[404096829,1769827839191,-508.3023,0.00022835,2]
[404096831,1769827839201,-508.3023,0.00022835,2]
[404096833,1769827839210,-508.3023,0.00022835,3]
[404096835,1769827839219,-508.3023,0.00022835,5]
[404096837,1769827839229,-508.3023,0.00022835,2]
[404096839,1769827839238,-508.3023,0.00022835,3]
[404096841,1769827839257,-508.3023,0.00022835,5]
[404096843,1769827839277,-508.3023,0.00022835,2]
[404096846,1769827839299,-508.3023,0.00022835,3]
[404096848,1769827839312,-314.3554,0.00022835,5]
[404096851,1769827839324,-178.92208645,0.00022839,5]
[404096853,1769827839335,-157.43607312,0.00022839,5]
[404096855,1769827839345,-156.96066699,0.00022877,8]
[404096857,1769827839356,-500.0,0.00022899,2]
[404096859,1769827839366,-151.0,0.000236,6]
[404096861,1769827839375,-151.13188815,0.00023721,2]
[404096863,1769827839385,-150.32954135,0.00023721,2]
[404096865,1769827839395,-150.5841945,0.00023721,2]
[404096867,1769827839404,-150.57090573,0.00023721,2]
[404096869,1769827839413,-150.14689112,0.00023721,2]
[404096871,1769827839422,-358.1733261,0.00023755,2]
[404096873,1769827839432,-312.0,0.00024204,2]
[404096875,1769827839441,-435.86042139,0.00024293,2]
[404096877,1769827839451,-1741.69824386,0.00024293,2]
[404096879,1769827839460,-331.0,0.00024308,2]
[404096881,1769827839469,-3244.37411318,0.00024354,2]
[404096883,1769827839478,-33656.14481666,0.00024402,2]
[404096885,1769827839488,-767.70154542,0.00024549,2]
[404096887,1769827839497,-3067.73537549,0.00024549,2]
[404096889,1769827839507,-415.0,0.00024595,2]
[404096891,1769827839518,-3067.44,0.000246,3]
[404096893,1769827839528,-150.26028662,0.00024658,2]
[404096895,1769827839538,-3067.41,0.0002469,3]
[404096898,1769827839548,-3067.41,0.000247,3]
[404096900,1769827839557,-512.49211908,0.00024899,30]
[404096902,1769827839567,-151.0,0.000249,9]
[404096904,1769827839576,-485.4,0.000249,14]
[404096906,1769827839587,-151.0,0.000249,7]
[404096908,1769827839596,-151.339175,0.000249,7]
[404096910,1769827839606,-151.0,0.000249,7]
[404096912,1769827839615,-151.0,0.000249,7]
[404096914,1769827839626,-192.788161,0.000249,7]
[404096916,1769827839636,-192.788161,0.000249,7]
[404096918,1769827839646,-151.0,0.000249,7]
[404096920,1769827839655,-151.0,0.000249,7]
[404096922,1769827839664,-192.788161,0.000249,7]
[404096924,1769827839674,-192.788161,0.000249,7]
[404096926,1769827839683,-151.0,0.000249,7]
[404096927,1769827839693,-192.788161,0.000249,7]
[404096928,1769827839702,-192.788161,0.000249,7]
[404096929,1769827839711,-285.287538,0.000249,7]
[404096931,1769827839721,-192.788161,0.000249,7]
[404096932,1769827839730,-192.788161,0.000249,7]
[404096934,1769827839741,-50273.58165904,0.000249,2]
[404096937,1769827839788,-7370.07238969,0.000249,2]
[404096938,1769827839799,-491.6698901,0.000249,2]
[404096940,1769827839810,-587.88689563,0.000249,2]
[404096945,1769827840439,-232.43,0.0002199,10]
[404096946,1769827840450,-369.48228206,0.00024805,2]
[404096947,1769827840459,-262.08771794,0.000249,2]
[404096948,1769827840470,-612.61066714,0.000249,2]
[404096949,1769827840492,-2422.98079477,0.000249,2]
[404096956,1769827845358,-520.64860587,0.000249,2]
[404096958,1769827845370,-508.60921729,0.000249,2]
[404096959,1769827845381,-1202.0999994,0.000249,2]
[404096968,1769827846358,-2097.61358544,0.000249,2]
[404096969,1769827846411,-88701.65547392,0.000249,2]
[404096970,1769827846423,-8000.0,0.000249,2]
[404096994,1769829032336,-260.81918052,0.00011078,2]
[404096995,1769829032346,-186.36148987,0.0001119,2]
[404096996,1769829032357,-258.65697711,0.0001119,2]
[404096997,1769829032368,-1230.01700663,0.0001119,2]
[404097030,1769829038479,-3324.96452639,0.0001119,2]
[404097032,1769829038489,-5000.0,0.00011303,2]
[404097034,1769829038499,-300.0,0.00011647,2]
[404097036,1769829038508,-405.0,0.00011647,2]
[404097038,1769829038517,-511.60831674,0.00013273,2]
[404097040,1769829038527,-501.43600616,0.00013273,2]
[404097041,1769829038536,-517.82783955,0.00013273,2]